Cogmind - Beta 13 @@@ ROGUE MODE // 2024.05.23 @ 15:02:29 Player: Some Pennies Result: Destroyed by Y-45 Defender with Heavy Assault Rifle Performance ------------- Evolutions (1) 500 Regions Visited (5) 1000 Robots Destroyed (103) 515 Value Destroyed (2555) 2555 Prototype IDs (9) 180 Alien Tech Used (0) 0 Bonus (369) 369 TOTAL SCORE: 5119 Bonus ------- High Alert Combat Kills 50 Follower Combat Kills 143 Entered Garrisons 200 Friendly Fire -24 Cogmind --------- Core Integrity 0/400 Matter 244/300 Energy 280/280 System Corruption 0% Temperature Cool (9) Movement Treading (160) Location -9/Garrison Parts ------- > --- POWER (1) -------- Cooled Ion Engine > --- PROPULSION (3) --- Light Treads Light Treads Light Treads > --- UTILITY (3) ------ High-capacity Storage Unit Light Armor Plating Hacking Suite > --- WEAPON (2) ------- Improved Assault Rifle Improved Assault Rifle > --- INVENTORY (20) --- Light Deuterium Engine Improved Flight Unit Improved Flight Unit Improved Flight Unit Improved Flight Unit Improved Flight Unit Improved Flight Unit Machine Analyzer Seismic Detector ECM Suite Improved Utility Shielding Hacking Suite Hacking Suite Advanced Beam Cannon Advanced Beam Cannon Improved Assault Rifle Mini Grenade Launcher Datajack Plasma Cutter Maul Peak State ------------ > --- POWER ------------ Cooled Ion Engine > --- PROPULSION ------- Light Treads Light Treads Light Treads > --- UTILITY ---------- High-capacity Storage Unit Insulated Plating Hacking Suite > --- WEAPON ----------- Improved Assault Rifle Improved Assault Rifle > --- INVENTORY -------- Light Deuterium Engine Light Treads Improved Flight Unit Improved Flight Unit Improved Flight Unit Improved Flight Unit Improved Heat Sink Machine Analyzer Seismic Detector ECM Suite Improved Utility Shielding Hacking Suite Hacking Suite Advanced Beam Cannon Advanced Beam Cannon Autogun Mini Grenade Launcher Datajack Mining Laser Plasma Cutter [Rating: 23] Favorites ----------- Power Light Ion Engine Engine Light Ion Engine Power Core Light Nuclear Core Propulsion Light Treads Treads Light Treads Leg Aluminum Leg Wheel Wheel Flight Unit Improved Flight Unit Utility Seismic Detector Device Seismic Detector Storage Large Storage Unit Processor Transport Network Coupler Hackware Hacking Suite Protection Light Armor Plating Weapon Assault Rifle Energy Gun Improved EM Shotgun Energy Cannon Advanced Beam Cannon Ballistic Gun Assault Rifle Special Weapon Mining Laser Impact Weapon Maul Build | -11 -10 -10 -9 -9 -9 ------- Run | Yrd Mat Min Mat Sto Gar Slots Evolved 2 | . . . 2 . . Power . | . . . . . . Propulsion 1 | . . . 1 . . Utility 1 | . . . 1 . . Weapon . | . . . . . . Parts Attached 111 | 7 27 2 47 26 2 Power 11 | 1 3 . 6 1 . Engine 10 | 1 2 . 6 1 . Core 1 | . 1 . . . . Reactor . | . . . . . . Propulsion 37 | 2 11 . 16 8 . Treads 31 | 1 7 . 15 8 . Leg 2 | . 2 . . . . Wheel 3 | 1 2 . . . . Hover . | . . . . . . Flight 1 | . . . 1 . . Utility 26 | 2 8 . 12 4 . Device 11 | 1 6 . 4 . . Storage 5 | 1 2 . 2 . . Processor 1 | . . . 1 . . Hackware 1 | . . . 1 . . Protection 8 | . . . 4 4 . Artifact . | . . . . . . Weapon 37 | 2 5 2 13 13 2 Energy Gun 1 | . . . 1 . . Energy Cannon 5 | . 1 . 4 . . Ballistic Gun 24 | 1 4 1 8 9 1 Ballistic Cannon . | . . . . . . Launcher . | . . . . . . Special Weapon 5 | 1 . 1 . 2 1 Impact Weapon 2 | . . . . 2 . Slashing Weapon . | . . . . . . Piercing Weapon . | . . . . . . Special Melee Weapon . | . . . . . . Unidentified Prototypes 3 | . . . 3 . . Parts Lost 19 | . 6 . 12 1 . Power 1 | . . . 1 . . Propulsion 8 | . 3 . 5 . . Utility 3 | . . . 2 1 . Weapon 7 | . 3 . 4 . . Highest Loss Streak 6 | . 5 . 6 1 . To Critical Strikes . | . . . . . . Average Slot Usage (%) 98 | . 97 100 98 99 100 Engine 9 | . 13 . 8 11 11 Core 2 | . . 14 1 . . Treads 29 | . 23 28 32 33 33 Device 7 | . 14 14 5 . . Storage 12 | . 14 14 11 11 11 Hackware 5 | . . . 8 11 11 Protection 4 | . . . 5 10 11 Energy Cannon 3 | . 1 . 7 2 . Ballistic Gun 20 | . 25 26 14 17 21 Naked Turns . | . . . . . . Heaviest Build 57 | 12 30 30 57 57 57 Greatest Support 63 | 10 40 40 60 63 60 Greatest Overweight (x) 5 | 1 5 . . . . Average Overweight (x) . | . . . . . . Largest Inventory Capacity 20 | 8 15 15 20 20 20 Average Capacity 15 | 7 10 15 17 20 20 Most Carried 20 | 5 15 15 20 20 20 Average Carried 14 | 2 9 14 15 19 20 Final Capacity 20 | 8 15 15 20 20 20 Final Carried 20 | 4 15 15 20 20 20 Class Distribution -------------------- 57% | Scavenger-Mutant 42% | Mutant Dominant Class ---------------- Mutant | -10/Materials Mutant | -10/Mines Scavenger-Mutant | -9/Materials Scavenger-Mutant | -9/Storage Scavenger-Mutant | -9/Garrison Resources | -11 -10 -10 -9 -9 -9 ----------- Run | Yrd Mat Min Mat Sto Gar Matter Collected 2608 | 286 653 80 994 559 36 Remotely . | . . . . . . Salvage Created 3553 | 119 888 55 1464 907 120 Parts 245 | 13 66 2 106 51 7 Haulers Intercepted 6 | . 2 . 3 1 . Recyclers Shooed 3 | . 2 . 1 . . Parts Field Recycled . | . . . . . . Retrieved Matter . | . . . . . . Parts Self-Destructed . | . . . . . . Prevented . | . . . . . . Kills | -11 -10 -10 -9 -9 -9 ------- Run | Yrd Mat Min Mat Sto Gar Combat Hostiles Destroyed 68 | . 14 2 30 19 3 Guns 50 | . 12 2 19 14 3 Cannons 18 | . 2 . 11 5 . Classes Destroyed 14 | 2 7 1 2 2 . Worker 5 | . 2 . 1 2 . Builder 3 | . 1 . 2 . . Tunneler 6 | 4 1 . 1 . . Hauler 6 | . 2 . 3 1 . Recycler 2 | 1 1 . . . . Mechanic 1 | . . . 1 . . Operator 6 | . 3 . 3 . . Watcher 7 | . 3 . 3 1 . Swarmer 13 | . 2 . 8 3 . Grunt 40 | . 12 1 16 8 3 Brawler 1 | . . . . 1 . Duelist 1 | . . . . 1 . Sentry 12 | . . . 6 6 . Assembled 1 | . . 1 . . . Best Kill Streak 7 | 3 4 1 7 4 2 Combat Bots Only 7 | . 2 1 7 4 2 Max Kills in Single Turn 2 | 1 1 1 2 2 1 Gunslinging 1 | . . . 1 . . Exploded . | . . . . . . Melee . | . . . . . . Uniques/NPCs Destroyed . | . . . . . . Combat | -11 -10 -10 -9 -9 -9 -------- Run | Yrd Mat Min Mat Sto Gar Hostile Shots Fired 477 | . 129 10 243 78 17 Missed 130 | . 30 4 68 22 6 Damage Taken 4040 | . 1104 92 1955 755 134 Core 545 | . 144 . 274 114 13 Absorbed by Shields . | . . . . . . Core Remaining (%) 71 | 100 . 42 . . . Volleys Fired 339 | 12 104 19 132 60 12 Largest 2 | 1 2 2 2 2 2 Hottest 120 | 20 80 120 91 100 46 Shots Fired 638 | 12 197 29 262 114 24 Gun 538 | 12 176 20 213 93 24 Cannon 86 | . 21 . 49 16 . Launcher . | . . . . . . Special 14 | . . 9 . 5 . Kinetic 538 | 12 176 20 213 93 24 Thermal 100 | . 21 9 49 21 . Explosive . | . . . . . . Electromagnetic . | . . . . . . Robot Hit Streak 23 | 12 13 5 23 18 9 Robot Miss Streak 5 | . 5 1 4 4 2 Penetration Max . | . . . . . . Secondary Targets 9 | . 1 1 6 1 . Max Gunslinging Chain 1 | . 1 1 1 1 . Shots Hit Robots 428 | 12 130 14 172 82 18 Core Hits 167 | 5 51 7 67 31 6 Critical Kills 3 | 1 . . 1 1 . Critical Parts Destroyed 3 | . . . . 3 . Critical Strikes 6 | 1 . . 1 4 . Destroy 4 | 1 . . 1 2 . Smash 2 | . . . . 2 . Melee Attacks 4 | . . . . 4 . Impact 4 | . . . . 4 . Slashing . | . . . . . . Piercing . | . . . . . . Sneak Attacks 1 | . . . . 1 . Combat Hostiles . | . . . . . . Follow-up Attacks . | . . . . . . Damage Inflicted 6140 | 142 1522 173 2588 1444 271 Guns 4739 | 142 1258 173 1798 1097 271 Cannons 1306 | . 264 . 790 252 . Explosions . | . . . . . . Melee 95 | . . . . 95 . Ramming . | . . . . . . Kinetic 4739 | 142 1258 173 1798 1097 271 Thermal 1306 | . 264 . 790 252 . Explosive . | . . . . . . Electromagnetic . | . . . . . . Impact 95 | . . . . 95 . Slashing . | . . . . . . Piercing . | . . . . . . Highest Corruption . | . . . . . . Average Corruption . | . . . . . . Corruption Purged . | . . . . . . Corruption Blocked . | . . . . . . Overload Shots . | . . . . . . Overflow Damage 103 | . . . 8 95 . Projectiles 8 | . . . 8 . . Explosions . | . . . . . . Melee 95 | . . . . 95 . Knockbacks 1 | . . . . 1 . Impact 1 | . . . . 1 . Kinetic . | . . . . . . Secondary . | . . . . . . Self-Inflicted Damage . | . . . . . . Shots . | . . . . . . Rammed . | . . . . . . Targets Rammed . | . . . . . . Kicked . | . . . . . . Crushed . | . . . . . . Highest Temperature 319 | . 319 80 218 266 2 Average Temperature 67 | . 106 34 53 68 2 Received Heat Transfer 1705 | . 549 61 711 324 60 Effects 5 | . 5 . . . . Energy Bleed 2 | . 2 . . . . Interference 3 | . 3 . . . . Siege Activations . | . . . . . . Robots Corrupted . | . . . . . . Combat Hostiles . | . . . . . . Parts Fried 1 | . . . . 1 . Impact Corruptions 4 | . . . . 4 . Robots Melted . | . . . . . . Combat Hostiles . | . . . . . . Parts Melted . | . . . . . . Heat Transferred 2405 | . 555 . 1406 444 . Parts Sabotaged . | . . . . . . Parts Stolen . | . . . . . . Parts Stripped . | . . . . . . Power Chain Reactions . | . . . . . . Alert | -11 -10 -10 -9 -9 -9 ------- Run | Yrd Mat Min Mat Sto Gar Peak Influence 519 | 25 319 75 431 519 397 Initial 337 | . 16 . 29 155 337 Average 219 | 12 175 17 260 318 378 Maximum Alert Level 2 | . 1 . 2 2 1 Low Security (%) 47 | 100 69 100 31 15 . Level 1 46 | . 30 . 62 60 100 Level 2 5 | . . . 6 23 . Level 3 . | . . . . . . Level 4 . | . . . . . . Level 5 . | . . . . . . High Security . | . . . . . . Max Security . | . . . . . . Squads Dispatched 15 | . 5 . 5 5 . Investigation 6 | . 2 . 3 1 . Extermination . | . . . . . . Reinforcement 6 | . 3 . 2 1 . Assault . | . . . . . . Garrison 3 | . . . . 3 . Intercept . | . . . . . . Searches Triggered . | . . . . . . Construction Impeded . | . . . . . . Haulers Reinforced . | . . . . . . Active Scanning Responses . | . . . . . . Cargo Convoy Interrupts . | . . . . . . Stealth | -11 -10 -10 -9 -9 -9 --------- Run | Yrd Mat Min Mat Sto Gar Distress Signals 6 | . 1 . 4 1 . Communications Jammed . | . . . . . . Distress Signals . | . . . . . . Times Spotted 118 | . 33 5 53 23 4 Peak Tracking Total 8 | . 5 2 8 4 2 Tactical Retreats 10 | . 4 1 2 3 . Traps | -11 -10 -10 -9 -9 -9 ------- Run | Yrd Mat Min Mat Sto Gar Traps Triggered 3 | . 1 . 2 . . Indirectly . | . . . . . . Trap Hack Attempts . | . . . . . . Triggered . | . . . . . . Disarmed . | . . . . . . Reprogrammed . | . . . . . . Reused . | . . . . . . Traps Extracted . | . . . . . . Installed . | . . . . . . Triggered . | . . . . . . Machines | -11 -10 -10 -9 -9 -9 ---------- Run | Yrd Mat Min Mat Sto Gar Machines Disabled 7 | . . 1 2 4 . Max in Single Turn 1 | . . . 1 1 . Garrison Relay 1 | . . . . . 1 Machines Repaired . | . . . . . . Machines Dismantled 1 | . . . . . 1 Machines Sabotaged . | . . . . . . Overloaded Fab Kills . | . . . . . . Hacking | -11 -10 -10 -9 -9 -9 --------- Run | Yrd Mat Min Mat Sto Gar Machines Accessed 21 | . 6 . 12 3 . Terminals 16 | . 5 . 9 2 . Fabricators . | . . . . . . Repair Stations . | . . . . . . Recycling Units 3 | . 1 . 2 . . Scanalyzers 1 | . . . 1 . . Garrison Access 1 | . . . . 1 . Total Hacks 71 | . 25 . 34 12 . Successful 36 | . 12 . 17 7 . Failed 35 | . 13 . 17 5 . Catastrophic 6 | . 2 . 4 . . Database Lockouts . | . . . . . . Manual 38 | . 17 . 15 6 . Terminals 58 | . 21 . 26 11 . Fabricators . | . . . . . . Repair Stations . | . . . . . . Recycling Units 8 | . 4 . 4 . . Scanalyzers 4 | . . . 4 . . Garrison Access 1 | . . . . 1 . Terminal Hacks 25 | . 8 . 12 5 . Part Schematic 1 | . 1 . . . . Robot Analysis 3 | . 1 . 1 1 . Prototype ID Bank 4 | . 1 . 3 . . Branch Access Points 2 | . 1 . 1 . . Emergency Access Points 2 | . . . 1 1 . Alert Level 2 | . . . 1 1 . Unreport Threat 2 | . 1 . . 1 . Locate Traps 1 | . 1 . . . . Maintenance Status 1 | . . . 1 . . Security Status 1 | . . . 1 . . Recall Investigation 1 | . 1 . . . . Hauler Manifests 2 | . . . 2 . . Zone Layout 3 | . 1 . 1 1 . Fabricator Hacks . | . . . . . . Repair Station Hacks . | . . . . . . Recycling Unit Hacks 2 | . . . 2 . . Retrieve Components 2 | . . . 2 . . Scanalyzer 3 | . . . 3 . . Insert Component 1 | . . . 1 . . Analyze 2 | . . . 2 . . Garrison Access Hacks 1 | . . . . 1 . Unlock Access 1 | . . . . 1 . Unauthorized Hacks 5 | . 4 . . 1 . Terminals 3 | . 2 . . 1 . Botnet 3 | . 2 . . 1 . Fabricators . | . . . . . . Repair Stations . | . . . . . . Recycling Units 2 | . 2 . . . . Reject 1 | . 1 . . . . Mask 1 | . 1 . . . . Scanalyzers . | . . . . . . Garrison Access . | . . . . . . Data Cores Recovered . | . . . . . . Used . | . . . . . . Hacking Detections 17 | . 6 . 9 2 . Full Trace Events 5 | . 3 . 1 1 . Feedback Events . | . . . . . . Feedback Blocked . | . . . . . . Robot Schematics Acquired . | . . . . . . Robots Built . | . . . . . . Authchips . | . . . . . . Time . | . . . . . . Total Robot Build Rating . | . . . . . . Part Schematics Acquired 2 | . 1 . 1 . . Parts Built . | . . . . . . Authchips . | . . . . . . Time . | . . . . . . Total Part Build Rating . | . . . . . . Parts Repaired . | . . . . . . Time . | . . . . . . Parts Recycled . | . . . . . . Recycled Matter . | . . . . . . Retrieved Matter . | . . . . . . Retrieved Components 10 | . . . 10 . . Parts Scanalyzed 1 | . . . 1 . . Part Schematics Acquired 1 | . . . 1 . . Parts Damaged . | . . . . . . Bothacking | -11 -10 -10 -9 -9 -9 ------------ Run | Yrd Mat Min Mat Sto Gar Used RIF Installer . | . . . . . . Robots Hacked . | . . . . . . Non-combat . | . . . . . . Combat . | . . . . . . Robot Hacks Applied . | . . . . . . Relay Couplers Released 3 | . . . . . 3 Machine Destruction 3 | . . . . . 3 Fabnet Peak Effective % . | . . . . . . Robots Rewired . | . . . . . . Allies Hacked . | . . . . . . Hacks Repelled . | . . . . . . Allies | -11 -10 -10 -9 -9 -9 -------- Run | Yrd Mat Min Mat Sto Gar Total Allies 5 | . . 5 . . . Largest Group 5 | . . 5 3 . . Highest-Rated Group 85 | . . 85 52 . . Highest-Rated Ally 31 | . . 31 28 . . Total Orders . | . . . . . . Ally Attacks 56 | . . 26 30 . . Total Damage 624 | . . 261 363 . . Kills 8 | . . 5 3 . . Allies Corrupted . | . . . . . . Allies Melted . | . . . . . . Intel | -11 -10 -10 -9 -9 -9 ------- Run | Yrd Mat Min Mat Sto Gar Robot Analysis Total 3 | . 1 . 1 1 . Derelict Logs Recovered 2 | . . 2 . . . Drone Launches . | . . . . . . Drone Recoveries . | . . . . . . Exploration | -11 -10 -10 -9 -9 -9 ------------- Run | Yrd Mat Min Mat Sto Gar Turns Passed 5520 | 112 1636 579 2090 792 311 Spaces Moved 2688 | 90 853 319 961 303 162 Core 16 | 14 2 . . . . Treads 2393 | . 648 319 961 303 162 Legs 78 | . 78 . . . . Wheels 201 | 76 125 . . . . Hover . | . . . . . . Flight . | . . . . . . Fastest Speed 50 | 50 95 160 160 160 160 Average Speed 153 | 78 147 160 160 160 160 Slowest Speed 300 | 95 300 160 160 160 160 Overloaded Moves . | . . . . . . Propulsion Burnouts . | . . . . . . Robots Hopped . | . . . . . . Cave-ins Triggered . | . . . . . . Exploration Rate (%) 53 | 4 95 70 87 33 32 Regions Visited 5 Branch Regions 2 Pre-discovered Areas 1 | . . 1 . . . Known Exits Taken 3 | . 1 . 1 1 . Unknown Exits Taken 2 | 1 . 1 . . . Scrap Searched 2 | . . 2 . . . Spaces Dug 1 | . . . . 1 . Terrain Destroyed 2 | . . 1 . 1 . Melee 1 | . . . . 1 . Projectile 1 | . . 1 . . . AOE . | . . . . . . Terrain Rammed . | . . . . . . Walls Destroyed . | . . . . . . Machines Disabled . | . . . . . . Actions | -11 -10 -10 -9 -9 -9 --------- Run | Yrd Mat Min Mat Sto Gar Total 3449 | 118 1053 341 1268 485 184 Wait 160 | . 26 . 63 66 5 Move 2683 | 89 852 318 960 302 162 Hop . | . . . . . . Pick Up 82 | 10 26 1 38 7 . Fast Attach 12 | 1 3 . 3 5 . Attach 37 | 6 8 1 21 1 . Detach 1 | . 1 . . . . Swap 62 | . 16 1 23 20 2 Drop 66 | . 17 1 28 20 . Fire 339 | 12 104 19 132 60 12 Melee 4 | . . . . 4 . Ram . | . . . . . . Kick . | . . . . . . Crush . | . . . . . . Escape Stasis . | . . . . . . Rewire . | . . . . . . Trap . | . . . . . . Miscellaneous 3 | . . . . . 3 Route ------- -11/Scrapyard -10/Materials (discovered 6 exits: *Mat x3 / *Min x2 / [*Sub]) -10/Mines (discovered 3 exits: *Mat x2 / Exi) -9/Materials (discovered 7 exits: [*Mat x3] / *Min x2 / *Sto x2) -9/Storage -9/Garrison History --------- Turn | Location | Event 11 | -11/Scrapyard | Discovered new exit (range 15) 113 | -11/Scrapyard | Entered Materials 276 | -10/Materials | Discovered new exit (range 16) 316 | -10/Materials | Build established: Mutant 509 | -10/Materials | Discovered new exit (range 13) 655 | -10/Materials | Core integrity fell below 50% 693 | -10/Materials | Lost 5 parts (3n2w) 836 | -10/Materials | Discovered new exit (range 16) 949 | -10/Materials | Discovered new exit (range 11) 1101 | -10/Materials | Discovered new exit (range 9) 1135 | -10/Materials | Build established: Scavenger-Mutant 1253 | -10/Materials | Identified exit to Mines 1282 | -10/Materials | Discovered new exit (range 9) 1594 | -10/Materials | Build established: Mutant 1749 | -10/Materials | Entered Mines 1772 | -10/Mines | Assisted by bots powering up and referring to "LRC-V3" 1908 | -10/Mines | Excavation squad dispatched 1908 | -10/Mines | A large section of the Mines collapsed 2056 | -10/Mines | Learned location of Storage (-9) 2106 | -10/Mines | Identified exit to Exiles 2110 | -10/Mines | Discovered new exit (range 6) 2130 | -10/Mines | Learned Materials terminal intel 2284 | -10/Mines | Discovered new exit (range 5) 2328 | -10/Mines | Entered Materials 2328 | -9/Materials | Accompanied by 3 allies 2328 | -9/Materials | Evolved 2 slots: Propulsion x1, Utility x1 2329 | -9/Materials | Loaded intel: 12 terminal locations 2329 | -9/Materials | Discovered new exit (range 8) 2333 | -9/Materials | Led the pair of lost Derelicts to an unsafe place 2536 | -9/Materials | Discovered new exit (range 12) 2605 | -9/Materials | Lost 3 allies 2654 | -9/Materials | Destroyed 7 combat bots 2658 | -9/Materials | Lost 6 parts (1p3n2w) 2801 | -9/Materials | Core integrity fell below 50% 2845 | -9/Materials | Lost 5 parts (1n2u2w) 3110 | -9/Materials | Build established: Scavenger-Mutant 3256 | -9/Materials | Discovered new exit (range 5) 3528 | -9/Materials | Identified exit to Mines 3528 | -9/Materials | Identified exit to Storage 3698 | -9/Materials | Discovered new exit (range 15) 4183 | -9/Materials | Discovered new exit (range 16) 4418 | -9/Materials | Entered Storage 4565 | -9/Storage | Core integrity fell below 20% 4995 | -9/Storage | Garrison activated, responded to threat 5086 | -9/Storage | Identified exit to Garrison 5210 | -9/Storage | Entered Garrison 5260 | -9/Garrison | Triggered checkpoint 5373 | -9/Garrison | Garrison Relay disabled 5460 | -9/Garrison | Triggered checkpoint 5510 | -9/Garrison | Triggered checkpoint 5521 | -9/Garrison | Destroyed by Y-45 Defender with Heavy Assault Rifle Last Messages --------------- 05207_ Acquired Lgt. Treads. 05208_ Acquired 32 matter. 05209_ K-01 Serf collects debris. LOCATION=GARRISON GOAL=ESCAPE 05290_ G-34 Mercenary destroyed. 05308_ Acquired 35 matter. 05310_ Acquired 1 matter. 05322_ G-34 Mercenary destroyed. 05367_ Dismantling Garrison Relay with Plasma Cutter. 05373_ Garrison Relay dismantled. 05373_ Relay Coupler [Grunt] tumbles out of relay unit. 05373_ Relay Coupler [Specialist] tumbles out of relay unit. 05373_ Relay Coupler [Duelist] tumbles out of relay unit. 05460_ Beams of light sweep through the air. An alarm sounds. Map ----- +----------------------------------------------------+ | ?????????????????????????????????????????????????? | | ?????????????????????????????????????????????????? | | ?????????????????????????????????????????????????? | | ?????????????????????????????????????????????????? | | ?????????????????????????????????????????????????? | | ?????????????????????????????????????????????????? | | ?????????????????????????????????????????????????? | | ?????????????????????????????????????????????????? | | ?????????????????????????????????????????????????? | | ???????????????????????? ????????????????????????? | | ???????????????????????? ????????????????????????? | | ???????????????????????? ????????????????????????? | | ???????????????????????? ????????????????????????? | | ???????????????????????? ????????????????????????? | | ???????????????????????? ????????????????????????? | | ???????????????????????? ????????????????????????? | | ???????????????????????# #???????????????????????? | | ???????????????????????# #???????????????????????? | | ??????????????????????? #???????????????????????? | | ??????????????????????? #???????????????????????? | | ??????????????????????? #???????????????????????? | | ???????????????????????# #???????????????????????? | | ???????????????????????# #???????????????????????? | | ???????????????????????# #???????????????????????? | | ???????????????????????#Y#####???????????????????? | | ???????????????????????# @ #???????????????????? | | ???????????????????????##### #???????????????????? | | ???????????????????????????# #???????????????????? | | ???????????????????????????# #???????????????????? | | ???????????????????????????# #???????????????????? | | ???????????????############# ### ### #??????????? | | ???????????????# #??????????? | | ???????????????# #??????????? | | ???????????????# ######### ####### #??????????? | | ???????????????# #???????# #???????????????????? | | ?????#?????????# #???????# #???????????????????? | | ?????# ????????# #???????# #???????????????????? | | ?????# ?#####?# #???????# #???????????????????? | | ?????# ?# ?# #???????# #???????????????????? | | ????## ## ## ##??????# #???????????????????? | | ????# ######## #???????????????????? | | ????# #???????????????????? | | ????# #???????????????????? | | ????# ## ## ###########???????????????????? | | ????# ## ## #?????????????????????????????? | | ????" "?????????????????????????????? | | ????" "?????????????????????????????? | | ????" "?????????????????????????????? | | ????" "?????????????????????????????? | | ????# ## ## #?????????????????????????????? | +----------------------------------------------------+ Best States ------------- Heat Dissipation 42 Energy Generation 14 Energy Capacity 280 Matter Stores 300 Matter Capacity 300 Sight Range 16 Terrain Scan Range 16 Terrain Scan Density 10 Armor Coverage 150 Resistance: EM 15 Utility Shielding 66 Evasion (%) 55 Recoil Reduction 3 Offensive Hacking 10 Item Schematics ----------------- Cargo Storage Unit | -10/Materials | Hacked Imp. Flight Unit | -9/Materials | Scanalyzed Robot Schematics ------------------ None Fabricated ------------ Nothing Alien Tech Used ----------------- None Achievements -------------- None Challenges ------------ None Game ------ Seed CoolingDecoderPod Manual? 0 Play Time 01:00:52 Cumulative 84.6 hours Start 2024.05.23 @ 12:17:15 End 2024.05.23 @ 15:02:29 Sessions 3 Manual Loads 0 Difficulty Rogue Special Mode None Game No. 79 Rogue 74 Adventurer 5 Explorer 0 Win Type - Total 1 Types 1/0/0/0/0/0/0/0/0 Lore% 38 Gallery% 50 Achievement% 37 Wizard Run 0 Options --------- Layout 2 ASCII 0 Keyboard 0 Movement Mouse Keybinds 0 Fullscreen 2 Font 24/Smallcaps Map View 50x44 Zoom Use 0% Tactical HUD 1 Map Filters NONE Filters NONE Steam 1 RUN: 26a7a2cd-f643-4c6b-9c0b-f493632fbcd6